bitfinex/quotes_ETHUSD_20250827
["timestamp","ask_amount","ask_price","bid_price","bid_amount"]
[1756253956285,1e-08,4595.3,4595.2,11.89398384]
[1756253958893,1e-08,4595.3,4595.2,11.89298384]
[1756253961498,0.28530001,4595.3,4595.2,8.23298384]
[1756253961699,0.74010001,4595.3,4595.2,7.62298384]
[1756253961900,0.74010001,4595.3,4595.2,1.674]
[1756253962102,0.74010001,4595.3,4595.2,4.863]
[1756253962800,0.74010001,4595.3,4595.2,7.03918384]
[1756253964370,0.74010001,4595.3,4595.2,4.863]
[1756253964786,1.65286334,4595.3,4595.2,3.664]
[1756253965079,0.74010001,4595.3,4595.2,3.664]
[1756253965279,0.74010001,4595.3,4595.2,5.84018384]
[1756253966694,0.74010001,4595.3,4595.2,3.664]
[1756253967008,0.74010001,4595.3,4594.7,2.17641197]
[1756253967232,0.4548,4595.2,4594.8,3.664]
[1756253967518,0.2853,4594.9,4594.8,5.84037329]
[1756253967672,0.7401,4594.9,4594.8,5.84037329]
[1756253968105,0.7401,4594.9,4594.8,3.664]
[1756253972414,1.95288296,4594.9,4594.8,3.664]
[1756253972730,0.7401,4594.9,4594.8,3.664]
[1756253973311,0.7401,4594.9,4594.6,1.673]
[1756253973512,0.4357,4594.8,4594.7,3.664]
[1756253973714,0.7451,4594.8,4594.7,3.664]
[1756253976742,2.5165956,4595.6,4595.1,0.66]
[1756253976743,1e-08,4595.6,4595.1,0.66]
[1756253976957,0.002,4596.5,4596.4,2.17561569]
[1756253977109,0.4357,4598.5,4596.7,2.8354737]
[1756253977302,0.4357,4598.5,4596.7,9.94792843]
[1756253977532,0.4357,4598.5,4596.9,2.83537905]
[1756253977710,0.4557,4598.8,4596.9,6.52237905]
[1756253977906,0.4557,4598.8,4596.9,7.28387905]
[1756253978110,0.4557,4598.8,4596.9,8.24941413]
[1756253978838,1e-08,4597.0,4596.9,8.4133678]
[1756253980700,1e-08,4597.3,4597.2,2.8352371]
[1756253980955,1e-08,4597.3,4597.2,7.71064337]
[1756253981157,0.4557,4598.8,4597.7,2.83500054]
[1756253981310,0.02,4598.8,4597.7,8.21475054]
[1756253981514,0.02,4598.8,4597.7,9.06330054]
[1756253981707,0.002,4597.8,4597.7,9.06330054]
[1756253981911,1e-08,4597.8,4597.7,10.18713827]
[1756253982367,1e-08,4597.8,4597.7,10.48913827]
[1756253983083,1e-08,4597.8,4597.7,10.18713827]
[1756253983594,1e-08,4597.8,4597.7,10.48913827]
[1756253984446,1e-08,4597.8,4597.7,6.33753827]
[1756253984785,1e-08,4597.8,4597.7,9.72563827]
[1756253985083,1e-08,4597.8,4597.7,10.02053827]
[1756253989071,1e-08,4597.8,4597.7,10.63053827]
[1756253989453,1e-08,4597.8,4597.7,6.65263827]
[1756253989657,0.74510001,4597.8,4597.7,8.24480054]
[1756253989863,0.74510001,4597.8,4597.7,8.24580054]
[1756253990188,0.74510001,4597.8,4597.7,8.90580054]
[1756253992188,0.74510001,4597.8,4597.7,11.90580054]
[1756253993874,1e-08,4597.8,4597.7,11.90580054]
[1756253994074,1e-08,4597.8,4597.7,13.60878828]
[1756253994598,1e-08,4597.8,4597.7,13.91078828]
[1756253994960,1e-08,4597.8,4597.7,14.37738828]
[1756253999353,1e-08,4597.8,4597.7,13.91078828]
[1756253999562,0.002,4598.3,4598.2,2.83476403]
[1756253999763,0.002,4598.3,4598.2,6.53051167]
[1756254000090,0.002,4598.3,4598.2,6.92716403]
[1756254000290,0.002,4598.3,4598.2,7.01434003]
[1756254001997,0.002,4598.3,4598.2,7.46264003]
[1756254002198,0.002,4598.3,4598.2,8.42638742]
[1756254002397,1e-08,4598.4,4598.3,2.83471674]
[1756254002596,1e-08,4598.4,4598.3,6.3047639]
[1756254002799,1e-08,4598.4,4598.3,6.59261674]
[1756254002997,1e-08,4598.4,4598.3,8.01372716]
[1756254004403,0.022,4598.8,4598.7,2.83452758]
[1756254004603,0.022,4598.8,4598.7,8.81227284]
[1756254004790,0.022,4598.8,4598.7,9.20892757]
[1756254005193,0.022,4598.8,4598.7,9.64952757]
[1756254005391,0.022,4598.8,4598.7,10.87677254]
[1756254010716,1e-08,4599.2,4599.1,2.83433845]
[1756254010865,1e-08,4599.2,4599.1,15.7265647]
[1756254011070,1e-08,4599.2,4599.1,16.12322132]
[1756254011400,1e-08,4599.2,4599.1,16.65866732]
[1756254011698,1e-08,4599.2,4599.1,18.45790547]
[1756254012069,1e-08,4599.2,4599.1,23.23660547]
[1756254013222,1e-08,4599.2,4599.1,23.23560547]
[1756254013820,1e-08,4599.2,4599.1,17.0341226]
[1756254014118,1e-08,4599.2,4599.1,13.3651226]
[1756254014285,1e-08,4599.2,4599.1,17.0341226]
[1756254014479,1e-08,4599.2,4599.1,17.0331226]
[1756254015909,1e-08,4599.2,4599.1,18.09142259]
[1756254016130,1e-08,4599.2,4599.1,17.4814226]
[1756254016309,1e-08,4599.2,4599.1,18.09142259]
[1756254016499,1e-08,4599.7,4599.2,5.17429118]
[1756254016815,1e-08,4599.7,4599.6,5.83410209]
[1756254017113,1e-08,4599.7,4599.6,11.59150209]
[1756254017802,1e-08,4599.7,4599.6,11.67864309]
[1756254018379,1e-08,4599.8,4599.7,5.83405482]
[1756254018574,1e-08,4599.8,4599.7,7.25516524]
[1756254018779,1e-08,4599.8,4599.7,7.56476524]
[1756254019210,1e-08,4600.2,4600.1,5.83386578]
[1756254019413,1e-08,4600.2,4600.1,10.59964586]
[1756254019716,1e-08,4600.2,4600.1,10.90924586]
[1756254019937,1e-08,4600.2,4600.1,11.10517286]
[1756254020253,1e-08,4600.8,4600.7,2.83358228]
[1756254020541,1e-08,4600.8,4600.7,11.58547633]
[1756254020708,1e-08,4600.8,4600.7,11.87334051]
[1756254021107,1e-08,4600.8,4600.7,12.31394051]
[1756254021308,1e-08,4600.8,4600.7,12.42451126]
[1756254021521,1e-08,4600.8,4600.7,12.31394051]
[1756254021969,1e-08,4600.8,4600.7,12.42371267]
[1756254022110,1e-08,4600.8,4600.7,12.87201267]
[1756254022305,1e-08,4601.8,4601.6,0.66]
[1756254022525,1e-08,4601.8,4601.7,11.17510993]
[1756254022740,1e-08,4601.8,4601.7,11.28390993]
[1756254023048,1e-08,4601.9,4601.8,5.83306271]
[1756254023245,1e-08,4601.9,4601.8,7.70127184]
[1756254024004,1e-08,4601.9,4601.8,8.01087184]
[1756254025221,1e-08,4602.3,4602.2,5.83287384]
[1756254025430,1e-08,4602.3,4602.2,10.30145582]
[1756254026024,1e-08,4602.3,4602.2,10.41025582]
[1756254026841,1e-08,4602.3,4602.2,10.71985582]
[1756254027660,2.17174138,4604.6,4602.2,10.71985582]
[1756254027661,0.4406,4603.3,4603.2,2.1724018]
[1756254027946,0.7447,4603.3,4603.2,8.1704018]
[1756254028143,0.7447,4603.3,4603.2,8.2792018]
[1756254028839,0.3041,4603.3,4603.2,8.2792018]
[1756254029050,0.4581,4603.8,4603.7,2.83216586]
[1756254029210,0.02,4603.8,4603.7,6.49816586]
[1756254029412,0.3227,4603.8,4603.7,6.77418488]
[1756254029841,0.7608,4603.8,4603.7,3.10818488]
[1756254030160,0.7608,4603.8,4603.7,6.77518488]
[1756254031010,0.7608,4603.8,4603.7,0.1088]
[1756254031208,0.7608,4603.8,4603.3,2.17234117]
[1756254031452,0.45966257,4603.7,4601.5,0.1612762]
[1756254031653,3.0,4603.3,4601.6,2.17315087]
[1756254031850,0.002,4602.3,4601.9,0.062]
[1756254032149,0.3027,4602.0,4601.9,0.062]
[1756254032355,0.7408,4602.0,4601.9,4.03654564]
[1756254032660,0.7408,4602.0,4601.9,4.01481549]
[1756254032816,0.7408,4602.0,4601.9,4.67481549]
[1756254033211,0.002,4602.3,4601.9,3.18659075]
[1756254033450,0.002,4602.3,4602.2,2.94167384]
[1756254033615,0.002,4602.3,4602.2,6.62667384]
[1756254033809,0.002,4602.3,4602.2,6.81067384]
[1756254034010,0.002,4602.3,4602.2,6.91947384]
[1756254034255,0.3047,4602.3,4602.2,7.81870534]
[1756254034614,0.002,4602.3,4602.2,8.11150534]
[1756254034814,0.7428,4602.3,4601.9,1.671]
[1756254035010,0.3047,4602.3,4602.2,2.17287384]
[1756254035326,0.3047,4602.3,4602.2,2.83287384]
[1756254035639,0.7428,4602.3,4602.2,2.83287384]
[1756254036361,0.7428,4602.3,4602.2,6.53187384]
[1756254036546,0.7428,4602.3,4602.2,4.359]
[1756254036751,0.7428,4602.3,4602.2,6.53187384]
[1756254037126,0.7428,4602.3,4602.2,0.66]
[1756254037470,0.7428,4602.3,4602.2,4.358]
[1756254037674,0.7428,4602.3,4602.2,6.53087384]
[1756254039090,0.002,4602.3,4602.2,7.8720413]
[1756254039668,0.002,4602.3,4602.2,10.8720413]
[1756254040893,0.002,4602.3,4602.2,11.3441413]
[1756254041069,0.002,4602.8,4602.7,2.83263779]
[1756254041269,0.002,4602.8,4602.7,6.52863779]
[1756254041455,0.002,4603.3,4603.2,2.8324018]
[1756254041658,0.002,4603.3,4603.2,8.22112581]
[1756254041857,0.002,4603.3,4603.2,9.53156184]
[1756254042060,0.002,4603.3,4603.2,9.23876184]
[1756254042388,0.3047,4603.3,4603.2,9.24276184]
[1756254042983,0.7428,4603.3,4603.2,7.5424018]
[1756254043357,0.3047,4603.3,4603.2,8.2024018]
[1756254043684,0.002,4603.3,4603.2,8.2024018]
[1756254043880,0.002,4603.3,4603.2,9.23988944]
[1756254045050,0.002,4603.3,4603.2,9.53268944]
[1756254045248,0.002,4603.3,4603.2,10.61478943]
[1756254045447,1e-08,4603.3,4603.2,10.61478943]
[1756254048390,1e-08,4603.3,4603.2,13.61478943]
[1756254048973,0.02,4603.8,4603.2,13.61478943]
[1756254048974,1e-08,4603.8,4603.7,5.83216586]
[1756254049293,1e-08,4603.8,4603.7,10.83318244]
[1756254049494,1e-08,4603.8,4603.7,11.59808244]
[1756254050564,1e-08,4604.3,4604.2,2.83192997]
[1756254050888,1e-08,4604.3,4604.2,11.50584226]
[1756254051085,1e-08,4604.3,4604.2,12.35782297]
[1756254052465,0.022,4604.8,4604.7,2.83169413]
[1756254052673,0.022,4604.8,4604.7,6.52969413]
[1756254052869,0.6556,4604.8,4604.7,6.63849413]
[1756254054292,0.6556,4604.8,4604.7,6.80414364]
[1756254054463,0.2199,4604.8,4604.7,7.59293451]
[1756254054866,0.022,4604.8,4604.7,7.59293451]
[1756254055167,0.022,4604.8,4604.7,7.88573451]
[1756254055572,0.022,4604.8,4604.7,7.59293451]
[1756254056771,0.2495,4605.0,4604.9,2.83159981]
[1756254056974,0.2495,4605.0,4604.9,7.57854324]
[1756254058612,0.4474,4605.0,4604.9,3.88454324]
[1756254058914,0.4474,4605.0,4604.9,7.57754324]
[1756254059118,0.4474,4605.0,4604.9,7.57654324]
[1756254059678,0.2495,4605.0,4604.9,7.86384324]
[1756254060517,0.2495,4605.0,4604.9,7.57654324]
[1756254060811,0.2495,4605.0,4604.9,7.86384324]
[1756254061013,1e-08,4605.0,4604.9,8.31754324]
[1756254061417,1e-08,4605.0,4604.9,11.31754324]
[1756254063112,1e-08,4605.8,4605.7,2.83122261]
[1756254063314,1e-08,4605.8,4605.7,11.21293483]
[1756254063485,1e-08,4605.8,4605.7,11.47852261]
[1756254063688,1e-08,4605.8,4605.7,11.93222261]
[1756254063921,1e-08,4605.8,4605.7,13.34257429]
[1756254064588,1e-08,4606.8,4605.9,0.66]
[1756254064819,1e-08,4606.8,4605.8,5.295]
[1756254064820,1e-08,4606.8,4606.7,2.93955129]
[1756254065020,1e-08,4606.8,4606.7,12.12059635]
[1756254065201,1e-08,4606.8,4606.7,12.55258884]
[1756254068828,1e-08,4606.8,4606.7,8.86158884]
[1756254069018,1e-08,4606.8,4606.7,11.98708884]
[1756254069216,0.31460001,4606.8,4606.7,11.69978884]
[1756254069619,0.31460001,4606.8,4606.7,8.01178884]
[1756254069797,0.31460001,4606.8,4606.7,11.03878884]
[1756254070222,0.31460001,4606.8,4606.7,11.69878884]
[1756254070523,0.31460001,4606.8,4606.7,8.01178884]
[1756254070698,0.31460001,4606.8,4606.7,11.69878884]
[1756254072292,1e-08,4606.8,4606.7,11.69878884]
[1756254072493,1e-08,4606.8,4606.7,12.43978884]
[1756254072703,1e-08,4606.8,4606.7,11.98408884]
[1756254073328,1e-08,4607.8,4607.3,0.66]
[1756254073631,1e-08,4607.8,4607.7,5.83028018]
[1756254073831,1e-08,4607.8,4607.7,11.47558018]
[1756254074015,1e-08,4607.8,4607.7,13.04146911]
[1756254074229,1e-08,4607.8,4607.7,13.49516911]
[1756254074526,1e-08,4607.8,4607.7,13.49516492]
[1756254076851,1e-08,4607.8,4607.7,9.80616492]
[1756254077005,1e-08,4607.8,4607.7,13.49216492]
[1756254078829,1e-08,4607.8,4607.7,9.80616492]
[1756254079033,1e-08,4607.8,4607.7,13.59896492]
[1756254079530,1e-08,4607.8,4607.7,16.16358666]
[1756254079732,1e-08,4607.8,4607.7,12.47958666]
[1756254079920,1e-08,4607.8,4607.7,16.16458666]
[1756254080903,1e-08,4607.8,4607.7,12.47958666]
[1756254081114,1e-08,4607.8,4607.7,9.87654209]
[1756254081418,1e-08,4607.8,4607.7,13.76090008]
[1756254082632,1e-08,4607.8,4607.7,13.59803159]
[1756254082831,1e-08,4607.8,4607.7,9.17403159]
[1756254083137,0.20030001,4607.8,4607.7,12.19603159]
[1756254083345,0.20030001,4607.8,4607.7,12.85603159]
[1756254083739,0.20030001,4607.8,4607.7,12.19603159]
[1756254084241,0.20030001,4607.8,4607.7,12.85603159]
[1756254084841,0.20030001,4607.8,4607.7,12.85809733]
[1756254085056,0.20030001,4607.8,4607.7,5.51409733]
[1756254085251,0.20030001,4607.8,4607.7,7.83250391]
[1756254086111,0.20030001,4607.8,4607.7,8.49250391]
[1756254086411,0.20030001,4607.8,4607.7,4.97007411]
[1756254086741,0.63370001,4607.8,4607.7,8.65307411]
[1756254086915,0.63370001,4607.8,4607.7,1.97922373]
[1756254087111,0.63370001,4607.8,4607.7,5.66222373]
[1756254087441,0.63370001,4607.8,4607.7,5.55342373]
[1756254088143,0.63370001,4607.8,4607.7,1.87042373]
[1756254088325,0.74250001,4607.8,4607.7,5.55342373]
[1756254088646,0.74250001,4607.8,4607.7,1.87042373]
[1756254088897,2.91273309,4607.8,4607.7,1.87042373]
[1756254089213,3.42102097,4607.8,4607.7,3.59242373]
[1756254089414,6.42102097,4607.8,4607.7,3.88642373]
[1756254089615,3.63370001,4607.8,4607.7,3.88642373]
[1756254089823,3.74250001,4607.8,4607.7,3.88642373]
[1756254090319,5.91273309,4607.8,4607.7,3.88742373]
[1756254090720,5.91273309,4607.8,4607.7,0.20142373]
[1756254091036,5.91273309,4607.8,4607.7,3.88642373]
[1756254091233,3.74250001,4607.8,4607.7,3.88642373]
[1756254091436,0.20030001,4607.8,4607.7,6.90402255]
[1756254091612,1e-08,4607.8,4607.7,7.10612142]
[1756254091815,1e-08,4608.8,4608.7,2.82980927]
[1756254092131,1e-08,4608.8,4608.7,8.40470082]
[1756254092333,1e-08,4608.8,4608.7,10.2049591]
[1756254092636,0.19020001,4608.8,4608.7,9.5859591]
[1756254092821,0.19020001,4608.8,4608.7,8.52850082]
[1756254093431,1e-08,4608.8,4608.7,8.52850082]
[1756254093630,1e-08,4608.8,4608.7,9.27130082]
[1756254094851,1e-08,4608.8,4608.7,5.11540082]
[1756254095050,1e-08,4608.8,4608.7,9.2610291]
[1756254095258,1e-08,4608.8,4608.7,10.0038291]
[1756254099245,1e-08,4608.8,4608.7,13.0038291]
[1756254101570,1e-08,4608.8,4608.7,12.5669291]
[1756254101754,1e-08,4608.8,4608.7,12.56672542]
[1756254101958,1e-08,4608.8,4608.7,13.00362542]
[1756254103240,1e-08,4608.8,4608.7,8.84372542]
[1756254103573,0.19020001,4608.8,4608.7,4.14929714]
[1756254103767,0.19020001,4608.8,4608.7,7.86529714]
[1756254104071,0.63360001,4608.8,4608.7,4.14929714]
[1756254104231,0.63360001,4608.8,4608.7,7.87029714]
[1756254104436,0.63560001,4608.8,4608.7,4.14929714]
[1756254104631,0.63560001,4608.8,4608.7,7.87029714]
[1756254104836,0.63560001,4608.8,4608.7,8.53029714]
[1756254105640,0.63560001,4608.8,4608.7,1.87068787]
[1756254105835,0.63560001,4608.8,4608.7,3.92268787]
[1756254106093,3.08805449,4608.8,4608.7,3.92268787]
[1756254106369,0.63560001,4608.8,4608.7,3.92268787]
[1756254106581,0.63560001,4608.8,4608.7,0.20168787]
[1756254106883,2.17028018,4607.7,4607.6,0.001]
[1756254107066,19.45828984,4607.7,4607.6,0.001]
[1756254107271,3.0,4607.6,4605.6,0.16478547]
[1756254107579,3.0,4606.9,4605.6,0.16478547]
[1756254107746,2.17099439,4606.2,4605.9,0.075]
[1756254107953,0.1892,4606.0,4605.9,0.075]
[1756254108148,2.36028119,4606.0,4605.9,0.075]
[1756254108348,2.80368119,4606.0,4605.9,0.075]
[1756254109042,0.6326,4606.0,4605.9,0.075]
[1756254109348,6.38404703,4606.0,4605.9,0.075]
[1756254110080,0.4434,4606.7,4606.0,0.66]
[1756254110275,0.4434,4606.7,4606.0,2.329]
[1756254110477,0.4434,4606.7,4606.2,2.17098437]
[1756254110685,0.1917,4606.1,4605.8,0.02]
[1756254111185,3.0,4605.9,4605.8,0.02]
[1756254111581,0.6337,4605.9,4605.8,0.02]
[1756254111773,3.08530687,4605.9,4605.8,0.02]
[1756254111976,2.80482833,4605.9,4605.8,0.02]
[1756254113680,2.17182787,4604.5,4604.3,4.247]
[1756254113983,0.6337,4604.4,4604.3,1.669]
[1756254114186,2.1720715,4603.9,4603.8,0.02]
[1756254114590,0.6337,4603.9,4603.8,0.02]
[1756254114754,0.3015,4603.9,4603.8,0.02]
[1756254115081,0.6337,4603.9,4603.8,0.02]
[1756254115489,0.6337,4603.9,4603.8,3.784]
[1756254115655,2.8057715,4603.9,4603.8,0.02]
[1756254115858,3.08634865,4603.9,4603.8,0.02]
[1756254116562,6.08634865,4603.9,4603.8,0.02]
[1756254118463,3.91427715,4603.9,4603.8,0.02]
[1756254118675,3.3015,4603.9,4603.8,0.02]
[1756254119057,5.82733407,4603.9,4603.8,0.02]
[1756254119399,5.8057715,4603.9,4603.8,0.02]
[1756254120985,9.5717715,4603.9,4603.8,0.02]
[1756254121387,9.91175612,4603.9,4603.8,0.02]
[1756254121590,2.1724018,4603.2,4603.1,0.001]
[1756254121788,2.19396437,4603.2,4603.1,0.001]
[1756254122104,5.82756437,4603.2,4603.1,0.001]
[1756254122395,5.8060018,4603.2,4603.1,0.001]
[1756254122558,7.27179076,4603.2,4603.1,0.001]
[1756254122758,7.6118359,4603.2,4603.1,0.001]
[1756254125093,11.3758359,4603.2,4603.1,0.001]
[1756254125589,11.03579076,4603.2,4603.1,0.001]
[1756254128815,11.37583088,4603.2,4603.1,0.001]
[1756254130720,3.0,4603.1,4602.7,1e-08]
[1756254130895,2.17259059,4602.8,4602.7,1e-08]
[1756254131095,9.24865316,4602.8,4602.7,1e-08]
[1756254131403,9.56419059,4602.8,4602.7,1e-08]
[1756254131607,10.85971896,4602.8,4602.7,1e-08]
[1756254131915,10.77256596,4602.8,4602.7,1e-08]
[1756254133923,3.38096596,4602.8,4602.7,1e-08]
[1756254134125,6.38096596,4602.8,4602.7,1e-08]
[1756254134294,3.38096596,4602.8,4602.7,1e-08]
[1756254134504,3.67746596,4602.8,4602.7,1e-08]
[1756254134711,6.69902853,4602.8,4602.7,1e-08]
[1756254135028,7.01456596,4602.8,4602.7,1e-08]
[1756254135210,6.38096596,4602.8,4602.7,1e-08]
[1756254137808,2.17259059,4602.8,4602.7,0.78000001]
[1756254138013,2.17259059,4602.8,4602.7,1e-08]
[1756254138390,2.38585316,4602.8,4602.7,1e-08]
[1756254138599,2.36429059,4602.8,4602.7,1e-08]
[1756254138805,3.1179696,4602.8,4602.7,1e-08]
[1756254139002,3.13953217,4602.8,4602.7,1e-08]
[1756254139493,3.1179696,4602.8,4602.7,1e-08]
[1756254139715,2.9262696,4602.8,4602.7,1e-08]
[1756254139909,2.9262696,4602.8,4602.7,0.78000001]
[1756254140804,0.75367901,4602.8,4602.7,0.78000001]
[1756254141120,2.9262696,4602.8,4602.7,0.78000001]
[1756254141323,2.17259059,4602.8,4602.7,0.78000001]
[1756254141689,2.17259059,4602.8,4602.7,1e-08]
[1756254141892,2.36429059,4602.8,4602.7,1e-08]
[1756254142095,23.12581379,4602.8,4602.7,1e-08]
[1756254142410,25.35589492,4602.8,4602.7,1e-08]
[1756254142814,5.17259059,4602.8,4602.7,0.78000001]
[1756254143927,9.12029059,4602.8,4602.7,1e-08]
[1756254146821,8.92859059,4602.8,4602.7,1e-08]
[1756254147020,3.0,4602.8,4602.7,0.30930001]
[1756254147230,3.0,4602.8,4602.7,0.78000001]
[1756254147733,5.17259059,4602.8,4602.7,0.78000001]
[1756254149240,3.0,4602.8,4602.7,0.78000001]
[1756254149402,5.17259059,4602.8,4602.7,0.78000001]
[1756254150504,5.17259059,4602.8,4602.7,0.30930001]
[1756254150822,9.68910189,4602.8,4602.7,1e-08]
[1756254151230,5.94110189,4602.8,4602.7,1e-08]
[1756254151429,9.87300189,4602.8,4602.7,1e-08]
[1756254152744,9.68810189,4602.8,4602.7,0.30430001]
[1756254153070,5.94110189,4602.8,4602.7,0.74710001]
[1756254154439,5.94110189,4602.8,4602.7,1e-08]
[1756254154655,5.94110189,4602.8,4602.7,0.30430001]
[1756254156162,3.0,4602.8,4602.7,0.74710001]
[1756254156833,5.17259059,4602.8,4602.7,0.74710001]
[1756254157039,5.17259059,4602.8,4602.7,0.30430001]
[1756254157355,5.17259059,4602.8,4602.7,0.74710001]
[1756254157555,3.0,4602.8,4602.7,0.74710001]
[1756254157787,3.002,4602.8,4602.7,0.74710001]
[1756254159597,3.20557682,4602.8,4602.7,0.74710001]
[1756254159958,5.37816741,4602.8,4602.7,0.74710001]
[1756254160698,3.20557682,4602.8,4602.7,0.74710001]
[1756254160859,5.37816741,4602.8,4602.7,0.74710001]
[1756254161395,3.002,4602.8,4602.7,0.74710001]
[1756254161602,3.20560629,4602.8,4602.7,0.74710001]
[1756254161893,5.37819688,4602.8,4602.7,0.74710001]
[1756254162194,5.37819688,4602.8,4602.7,0.30430001]
[1756254162398,5.37824841,4602.8,4602.7,0.30430001]
[1756254162555,3.20565782,4602.8,4602.7,0.30430001]
[1756254162884,3.20565782,4602.8,4602.7,0.74710001]
[1756254163278,3.002,4602.8,4602.7,0.74710001]
[1756254164065,0.002,4602.8,4602.7,3.5797378]
[1756254164270,0.002,4602.8,4602.7,7.88908453]
[1756254164471,0.002,4603.3,4603.2,2.1724018]
[1756254164667,0.002,4603.3,4603.2,4.5034018]
[1756254164975,0.002,4603.3,4603.2,5.2505018]
[1756254165178,0.002,4603.3,4603.2,5.77555198]
[1756254166393,0.1889,4603.3,4602.7,1e-08]
[1756254166560,2.17259059,4602.8,4602.7,1e-08]
[1756254166764,2.19415316,4602.8,4602.7,1e-08]
[1756254167001,3.12031925,4602.8,4602.7,1e-08]
[1756254170777,3.09875668,4602.8,4602.7,1e-08]
[1756254171501,3.20255668,4602.8,4602.7,1e-08]
[1756254172089,3.54259101,4602.8,4602.7,1e-08]
[1756254172296,3.56415358,4602.8,4602.7,1e-08]
[1756254172697,3.22411925,4602.8,4602.7,1e-08]
[1756254173013,3.20255668,4602.8,4602.7,1e-08]
[1756254173193,0.002,4603.3,4602.7,0.30430001]
[1756254173394,2.1724018,4603.2,4602.7,0.74710001]
[1756254173595,0.002,4603.3,4602.8,0.4428]
[1756254173907,2.17244894,4603.2,4602.8,0.4428]
[1756254174106,0.002,4603.3,4603.1,0.3043]
[1756254174701,0.002,4603.3,4603.2,0.4428]
[1756254175107,0.002,4603.3,4603.2,0.7471]
[1756254175406,0.002,4603.3,4603.2,2.9195018]
[1756254176102,0.002,4603.3,4603.2,4.08870503]
[1756254176503,0.002,4603.3,4603.2,3.42870503]
[1756254176805,0.002,4603.3,4603.2,7.16070503]
[1756254176975,0.002,4603.3,4603.2,6.6515018]
[1756254180776,0.002,4603.3,4603.2,6.6465018]
[1756254183113,0.002,4603.3,4603.2,4.4721]
[1756254183405,0.002,4603.3,4603.2,0.3043]
[1756254183607,0.002,4603.3,4603.2,6.2007018]
[1756254183799,0.002,4603.3,4603.2,6.6619018]
[1756254185821,0.002,4603.3,4603.2,4.4895]
[1756254186211,0.002,4603.3,4603.2,6.6619018]
[1756254186513,0.002,4603.3,4603.2,4.4895]
[1756254187003,0.6364,4603.3,4602.7,1e-08]
[1756254187503,0.1752,4603.3,4602.7,1e-08]
[1756254187683,2.17259059,4602.8,4602.7,1e-08]
[1756254187881,2.38984965,4602.8,4602.7,1e-08]
[1756254188211,3.02564965,4602.8,4602.7,1e-08]
[1756254188411,3.04721222,4602.8,4602.7,1e-08]
[1756254188787,6.04721222,4602.8,4602.7,1e-08]
[1756254188985,6.02564965,4602.8,4602.7,1e-08]
[1756254189199,5.69984965,4602.8,4602.7,1e-08]
[1756254189402,13.55306063,4603.3,4602.7,0.28520001]
[1756254189403,0.002,4603.3,4602.7,0.28520001]
[1756254189604,2.17254254,4603.0,4602.7,0.28520001]
[1756254189918,0.002,4603.3,4602.7,0.28520001]
[1756254190321,0.002,4603.3,4602.8,0.4612]
[1756254190521,2.1724901,4603.1,4602.9,3.725]
[1756254190706,2.17254339,4602.9,4602.8,3.725]
[1756254190908,2.34574339,4602.9,4602.7,3.72500001]
[1756254191109,2.34574339,4602.9,4602.7,1e-08]
[1756254191309,0.002,4603.3,4602.8,0.2852]
[1756254191605,2.17240529,4603.2,4602.9,0.4612]
[1756254192028,2.17250036,4603.0,4602.7,1e-08]
[1756254192215,2.17258314,4602.9,4602.7,1e-08]
[1756254192602,2.17250019,4603.0,4602.7,1e-08]
[1756254193244,2.17250019,4603.0,4602.8,3.724]
[1756254193446,2.17250019,4603.0,4602.7,1e-08]
[1756254193603,2.17250019,4603.0,4602.8,3.723]
[1756254193930,3.0,4603.2,4602.9,0.7464]
[1756254194116,0.002,4603.3,4603.0,0.4612]
[1756254194524,2.17436159,4603.3,4603.0,0.4612]
[1756254195393,0.002,4603.3,4603.2,0.2852]
[1756254195597,0.002,4603.3,4603.2,0.7464]
[1756254196018,2.17435461,4603.3,4603.2,0.2852]
[1756254196299,2.17240365,4603.2,4602.7,1e-08]
[1756254196644,2.17245018,4603.1,4602.8,3.721]
[1756254196939,0.002,4603.3,4602.9,3.722]
[1756254197146,2.17249619,4603.0,4602.9,3.722]
[1756254197940,0.002,4603.3,4602.9,4.4674]
[1756254198109,2.172449,4603.1,4603.0,0.4612]
[1756254198316,3.002,4603.3,4603.0,0.7464]
[1756254198517,2.1724032,4603.2,4603.0,0.7464]
[1756254198716,2.1724032,4603.2,4603.0,0.2852]
[1756254199346,2.172449,4603.1,4603.0,0.2852]
[1756254199516,2.172449,4603.1,4603.0,3.719]
[1756254200372,2.1725502,4602.9,4602.8,3.719]
[1756254200518,0.002,4603.3,4602.8,4.0042]
[1756254201018,2.17254339,4602.9,4602.8,4.0042]
[1756254201541,2.17436473,4603.3,4602.8,4.0042]
[1756254201775,2.17249728,4603.0,4602.8,4.4654]
[1756254202338,2.17249728,4603.0,4602.8,4.0042]
[1756254203178,2.17240539,4603.2,4602.8,4.0042]
[1756254203666,2.17253716,4603.0,4602.9,3.72]
[1756254204374,2.17253716,4603.0,4602.9,4.0052]
[1756254204578,2.17249619,4603.0,4602.9,4.4664]
[1756254204739,2.48249619,4603.0,4602.9,3.72]
[1756254205473,2.17259059,4602.8,4602.7,1e-08]
[1756254205688,2.17259059,4602.8,4602.7,3.71800001]
[1756254205888,2.48259059,4602.8,4602.7,1e-08]
[1756254212184,6.19459059,4602.8,4602.7,1e-08]
[1756254212478,6.19459059,4602.8,4600.8,0.63099999]
[1756254212479,2.1729446,4602.1,4600.8,0.021]
[1756254212677,11.36625098,4601.9,4600.8,0.021]
[1756254212878,11.66535098,4601.9,4600.8,0.021]
[1756254213050,6.93040131,4601.9,4601.4,0.4662]
[1756254213255,5.17301549,4601.9,4601.4,0.4662]
[1756254213456,5.47211549,4601.9,4601.4,0.4662]
[1756254213652,5.47211549,4601.9,4601.0,0.946]
[1756254213867,5.47211549,4601.9,4601.1,0.4662]
[1756254216172,5.17301549,4601.9,4601.8,0.337]
[1756254217184,3.0,4601.9,4601.8,0.337]
[1756254217485,3.0,4601.9,4601.8,0.8032]
[1756254217788,1.671,4602.8,4601.8,0.8032]
[1756254217789,2.17274026,4602.5,4601.8,0.8032]